Workbook

Sheet Commission Tracker
B1: [Company name]
B2: Commission Tracker
B3: [Date]
B5: Model key:
B6: White cells with text are fields you can edit.
B7: Gray cells contain formulas that should not be changed.
B8: Annual sales target | D8: $2,000,000
B9: Commission payout % | D9: 10%
B11: Jan | C11: Feb | D11: Mar | E11: Apr | F11: May | G11: June | H11: July | I11: Aug | J11: Sep | K11: Oct | L11: Nov | M11: Dec | N11: Totals
B12: Holdbacks
B13: $2,000 | E13: $5,000 | N13: =SUM(B13:M13) -> $7,000
B14: Advances
B15: $100 | E15: $1,000 | N15: =SUM(B15:M15) -> $1,100
B17: Jan | C17: Feb | D17: Mar | E17: Apr | F17: May | G17: June | H17: July | I17: Aug | J17: Sep | K17: Oct | L17: Nov | M17: Dec | N17: Totals
B18: Expected sales
B19: =$D$8/12 -> $166,667 | C19: $166,667 | D19: $166,667 | E19: $166,667 | F19: $166,667 | G19: $166,667 | H19: $166,667 | I19: $166,667 | J19: $166,667 | K19: $166,667 | L19: $166,667 | M19: $166,667 | N19: =SUM(B19:M19) -> $2,000,000
B20: Actual sales
B21: $65,000 | C21: $32,000 | D21: $78,000 | E21: $116,000 | F21: $250,000 | G21: $130,000 | H21: $600,000 | I21: $0 | J21: $0 | K21: $0 | L21: $0 | M21: $150,000 | N21: =SUM(B21:M21) -> $1,421,000
B22: Anticipated commission
B23: =B19*$D$9 -> 16,667 | C23: 16,667 | D23: 16,667 | E23: 16,667 | F23: 16,667 | G23: 16,667 | H23: 16,667 | I23: 16,667 | J23: 16,667 | K23: 16,667 | L23: 16,667 | M23: 16,667 | N23: =SUM(B23:M23) -> $200,000
B24: Commission earned
B25: =B21*$D$9 -> 6,500 | C25: 3,200 | D25: 7,800 | E25: 11,600 | F25: 25,000 | G25: 13,000 | H25: 60,000 | I25: 0 | J25: 0 | K25: 0 | L25: 0 | M25: 15,000 | N25: =SUM(B25:M25) -> $142,100
B26: Commission received
B27: =B25-B13+B15 -> 4,600 | C27: =C25-C13+C15 -> 3,200 | D27: =D25-D13+D15 -> 7,800 | E27: =E25-E13+E15 -> 7,600 | F27: =F25-F13+F15 -> 25,000 | G27: =G25-G13+G15 -> 13,000 | H27: =H25-H13+H15 -> 60,000 | I27: =I25-I13+I15 -> 0 | J27: =J25-J13+J15 -> 0 | K27: =K25-K13+K15 -> 0 | L27: =L25-L13+L15 -> 0 | M27: =M25-M13+M15 -> 15,000 | N27: =SUM(B27:M27) -> $136,200
I29: Commission earned YTD | N29: =N25 -> $142,100
I30: Commission received YTD | N30: =N27 -> $136,200
